bitfinex/quotes_ETHUSD_20250131
["timestamp","ask_amount","ask_price","bid_price","bid_amount"]
[1738286827896,0.06355056,3261.7,3261.5,35.0]
[1738286828205,3.89142,3262.1,3261.7,0.0075]
[1738286828601,3.89142,3262.1,3261.6,0.0075]
[1738286828797,0.06364415,3262.0,3261.7,35.0]
[1738286829137,0.84134415,3262.0,3261.6,0.0075]
[1738286829444,0.84134415,3262.0,3261.7,35.0]
[1738286831242,3.06579,3261.8,3261.6,0.201]
[1738286831605,0.06366402,3261.7,3261.6,0.201]
[1738286832112,3.06579,3261.8,3261.6,0.201]
[1738286833169,3.84338,3262.0,3261.6,0.201]
[1738286833548,0.06369182,3261.9,3261.7,0.03815792]
[1738286833750,0.06369182,3261.9,3261.8,0.5575]
[1738286833939,3.86612,3262.3,3261.8,35.5575]
[1738286834142,0.0637763,3262.2,3261.8,35.5575]
[1738286834326,3.06544,3262.2,3261.8,35.7585]
[1738286834526,0.06376241,3262.1,3261.8,35.7585]
[1738286834742,3.06544,3262.2,3261.8,35.7585]
[1738286834945,0.06376694,3262.1,3261.8,35.7585]
[1738286835125,3.06544,3262.2,3261.8,35.7585]
[1738286835329,0.06376694,3262.1,3261.8,35.7585]
[1738286835533,3.06544,3262.2,3261.8,35.7585]
[1738286835729,0.06376694,3262.1,3261.8,35.7585]
[1738286835932,3.06544,3262.2,3261.8,0.7585]
[1738286836117,0.06376694,3262.1,3261.8,0.7585]
[1738286836742,3.06544,3262.2,3261.8,0.7585]
[1738286836919,0.06376694,3262.1,3261.8,0.7585]
[1738286837120,0.8008,3262.3,3261.8,0.7585]
[1738286837321,0.06378084,3262.2,3261.8,3.82429]
[1738286837540,0.8008,3262.3,3261.8,3.82429]
[1738286837756,0.0639267,3262.2,3261.8,3.8549444]
[1738286838262,0.8008,3262.3,3261.8,3.6539444]
[1738286838569,3.86613,3262.3,3261.8,0.7585]
[1738286839053,0.06392021,3262.2,3261.8,0.7585]
[1738286839468,3.86613,3262.3,3261.8,0.7585]
[1738286839655,0.06392475,3262.2,3261.8,0.7585]
[1738286839853,3.86613,3262.3,3261.8,0.7585]
[1738286840044,0.06392475,3262.2,3261.9,0.28628302]
[1738286840700,0.8008,3262.3,3261.9,0.28628302]
[1738286840842,0.06392475,3262.2,3261.9,0.28628302]
[1738286841187,0.8008,3262.3,3261.9,0.28628302]
[1738286841482,0.06392475,3262.2,3261.9,0.28628302]
[1738286841783,0.8008,3262.3,3262.0,0.28628302]
[1738286842084,0.06392475,3262.2,3262.0,0.28628302]
[1738286842268,0.8008,3262.3,3262.0,0.28628302]
[1738286842466,0.06394419,3262.2,3262.0,0.28628302]
[1738286842636,3.06526,3262.4,3262.1,0.5575]
[1738286842836,0.06395809,3262.3,3262.1,0.5575]
[1738286843184,0.06395809,3262.3,3261.7,3.06588]
[1738286843185,0.8264,3262.0,3260.4,5.37]
[1738286843397,3.89281,3261.2,3260.6,35.0]
[1738286843548,0.8264,3261.2,3260.6,35.0]
[1738286843746,3.16848307,3261.1,3260.3,0.61621369]
[1738286843952,3.86662,3261.0,3260.3,0.201]
[1738286844205,0.06365412,3260.9,3260.3,3.26819]
[1738286844355,0.06365412,3260.9,3260.4,35.0154263]
[1738286844554,0.8024,3261.6,3260.9,3.06662]
[1738286844780,0.06373756,3261.5,3260.9,3.06662]
[1738286845094,0.06373756,3261.5,3260.8,3.06664]
[1738286845264,0.06373756,3261.5,3260.9,3.06657]
[1738286845594,0.06373756,3261.5,3260.8,0.0154148]
[1738286845819,2.86812918,3261.2,3260.2,2.428]
[1738286845977,3.06684,3260.7,3260.2,2.428]
[1738286846172,0.8163,3260.9,3260.3,35.0]
[1738286846392,0.7841,3260.4,3259.5,0.0075]
[1738286846602,0.7841,3260.4,3258.9,10.40911382]
[1738286846603,0.7841,3260.0,3259.1,0.201]
[1738286846917,3.16895904,3259.9,3259.3,35.0]
[1738286847117,0.06304162,3259.9,3259.3,38.06813]
[1738286847820,0.06304162,3259.9,3258.4,3.1532293]
[1738286847821,0.8289,3259.5,3258.4,3.1532293]
[1738286848019,3.06815,3259.3,3258.4,3.1532293]
[1738286848320,0.10094035,3259.4,3258.6,3.0688]
[1738286848486,0.8289,3259.5,3259.1,3.06833]
[1738286848901,0.7835,3260.1,3259.2,0.01545362]
[1738286849218,0.28681292,3261.1,3260.2,3.06722]
[1738286849219,0.7835,3260.8,3260.2,3.06722]
[1738286849422,0.7835,3260.8,3260.2,38.06722]
[1738286849712,0.7835,3260.8,3260.2,35.0]
[1738286849896,0.7835,3260.8,3260.2,38.06727]
[1738286850103,0.06009325,3260.7,3260.3,3.06716]
[1738286850283,0.7835,3260.8,3260.3,3.06716]
[1738286850486,0.06009976,3260.7,3260.2,35.0]
[1738286850683,0.03833568,3260.7,3260.2,35.0]
[1738286850904,3.06719,3260.4,3260.2,35.0]
[1738286851222,0.06004882,3260.3,3260.2,35.0]
[1738286851402,3.87729,3260.0,3259.5,0.201]
[1738286851606,3.10592712,3259.9,3259.5,0.201]
[1738286851802,3.16611717,3259.9,3259.6,35.0]
[1738286852127,0.03834712,3259.9,3259.6,35.0]
[1738286852430,0.8098,3260.0,3259.5,3.26893]
[1738286852930,0.06021683,3259.9,3259.5,0.201]
[1738286853135,0.45395751,3259.9,3259.2,0.01544921]
[1738286853338,0.8212,3259.6,3258.9,3.06847]
[1738286853518,0.05995155,3259.5,3259.0,0.01546263]
[1738286854033,0.09830135,3259.5,3258.8,0.201]
[1738286854244,0.09830135,3259.5,3258.4,5.61031382]
[1738286854245,0.09830135,3259.5,3258.2,3.06916]
[1738286854558,3.83655,3259.0,3257.7,5.571]
[1738286854838,5.93680918,3258.8,3258.0,3.06927]
[1738286854991,0.03836348,3258.7,3258.0,3.06927]
[1738286855193,0.09826246,3258.7,3258.0,3.06927]
[1738286855404,0.7681,3259.0,3258.5,3.06888]
[1738286855694,0.7681,3259.0,3258.6,3.0688]
[1738286856234,0.05961155,3258.9,3258.7,3.06866]
[1738286856533,0.09796865,3258.9,3258.2,0.201]
[1738286856832,0.09796865,3258.9,3258.1,3.06918]
[1738286856833,3.06872,3258.7,3258.0,0.201]
[1738286856995,0.8065,3258.5,3258.0,0.201]
[1738286857192,0.8065,3258.5,3257.9,0.201]
[1738286857398,0.05945276,3258.4,3257.9,0.201]
[1738286857814,0.05945276,3258.4,3257.9,3.27044]
[1738286858010,3.06922,3258.2,3257.4,3.27093]
[1738286858311,0.05941097,3258.1,3257.6,3.06971]
[1738286858619,0.8065,3258.5,3257.9,3.06939]
[1738286858819,0.8113,3259.0,3258.3,3.06901]
[1738286859119,3.8113,3259.0,3258.2,3.06917]
[1738286859322,3.87973,3259.0,3258.0,3.08481701]
[1738286859506,0.03836087,3258.9,3258.2,3.0691]
[1738286859833,0.8113,3259.0,3258.5,3.06888]
[1738286860595,0.8113,3259.0,3258.6,3.0688]
[1738286860932,0.05920164,3258.9,3258.3,3.06903]
[1738286861130,0.05920164,3258.9,3258.5,3.06888]
[1738286861336,0.09755749,3258.9,3258.4,3.06898]
[1738286861644,0.05920164,3258.9,3258.4,3.06898]
[1738286862021,0.05920164,3258.9,3258.1,3.06927]
[1738286862022,0.03836006,3258.8,3258.1,3.06927]
[1738286862228,0.03836006,3258.8,3258.2,0.202]
[1738286862543,0.05916925,3258.7,3258.2,0.202]
[1738286862916,0.8113,3259.0,3258.2,0.202]
[1738286863116,0.05919514,3258.9,3258.4,3.06897]
[1738286863895,0.05919514,3258.9,3258.3,0.5575]
[1738286864099,0.05919514,3258.9,3258.8,3.06861]
[1738286864536,0.03835584,3259.2,3258.6,3.06877]
[1738286864949,0.0592947,3259.1,3258.6,3.06877]
[1738286865349,0.0592947,3259.1,3258.8,3.06853]
[1738286865520,0.8008,3259.3,3258.8,3.06853]
[1738286865710,0.05930862,3259.2,3258.8,3.06853]
[1738286865908,0.8008,3259.3,3259.1,3.06824]
[1738286866207,0.05936479,3259.2,3259.0,3.0684]
[1738286866839,3.82548,3259.7,3259.0,3.0684]
[1738286867049,0.05949206,3259.1,3259.0,3.0684]
[1738286867235,3.82548,3259.7,3259.0,3.0684]
[1738286867922,0.05955258,3259.6,3259.1,3.06831]
[1738286868522,0.05955258,3259.6,3259.5,3.06795]
[1738286869254,0.7836,3260.0,3259.6,3.06781]
[1738286869634,0.8041,3260.4,3259.9,3.06757]
[1738286869830,0.8041,3260.4,3259.7,0.015]
[1738286870030,0.7507,3260.8,3260.2,3.06728]
[1738286870347,0.7507,3260.8,3260.4,3.06706]
[1738286870545,0.7507,3260.8,3260.6,3.0669]
[1738286870749,0.7761,3261.3,3260.7,3.06682]
[1738286870947,0.384228,3261.2,3260.7,3.06682]
[1738286872129,0.03833326,3261.1,3260.6,0.202]
[1738286872735,0.753,3261.0,3260.3,0.202]
[1738286872946,3.06684,3260.7,3260.3,0.202]
[1738286873146,0.306684,3260.6,3260.3,0.202]
[1738286873464,3.10504791,3260.9,3260.2,3.06728]
[1738286873664,3.06671,3260.9,3260.2,3.06728]
[1738286874525,0.79133702,3261.0,3260.4,3.06708]
[1738286874763,0.753,3261.0,3260.3,0.01542767]
[1738286875068,0.753,3261.0,3260.5,3.06701]
[1738286875359,1.17328092,3261.0,3260.3,0.28526657]
[1738286875520,3.06671,3260.9,3260.3,0.48726657]
[1738286875720,0.03833621,3260.8,3260.3,0.48726657]
[1738286876162,3.06671,3260.9,3260.3,0.48726657]
[1738286876335,0.03833621,3260.8,3260.3,0.48726657]
[1738286876539,3.06671,3260.9,3260.3,3.55444657]
[1738286877154,1.134945,3261.0,3260.4,3.06701]
[1738286877490,0.753,3261.0,3260.5,3.06695]
[1738286878149,0.79133458,3261.0,3260.4,3.06701]
[1738286878549,0.753,3261.0,3260.5,3.06699]
[1738286880499,0.09886046,3260.9,3260.2,3.06727]
[1738286880648,0.09886046,3260.9,3259.8,3.06767]
[1738286880649,0.751,3260.3,3259.8,3.06767]
[1738286881196,0.06072876,3260.2,3259.6,3.26986]
[1738286881393,3.81821,3260.3,3259.6,3.06786]
[1738286881600,3.06745,3260.1,3259.2,3.0002]
[1738286881753,3.06758,3259.9,3259.5,0.202]
[1738286881947,0.06061135,3259.8,3259.3,3.06813]
[1738286882155,0.8117,3259.7,3259.3,3.06812]
[1738286882455,0.06052178,3259.6,3259.2,5.6992]
[1738286882857,0.06052178,3259.6,3259.3,3.06814]
[1738286883070,0.06052178,3259.6,3259.4,3.3534227]
[1738286883495,0.06052178,3259.6,3259.4,0.2853827]
[1738286883999,0.06052178,3259.6,3259.2,5.69917]
[1738286884300,0.06052178,3259.6,3259.2,2.429]
[1738286884596,0.09887288,3259.6,3259.2,2.429]
[1738286884989,0.09887288,3259.6,3259.3,0.28540233]
[1738286886083,0.06052178,3259.6,3259.3,0.28540233]
[1738286887383,0.06052178,3259.6,3259.3,3.35348233]
[1738286887588,0.06052178,3259.6,3259.3,0.28540233]
[1738286887896,0.06052178,3259.6,3259.4,3.35343233]
[1738286888093,0.06052178,3259.6,3259.5,3.06795]
[1738286888295,0.7655,3260.0,3259.5,3.06795]
[1738286888471,0.7655,3260.0,3259.6,3.06777]
[1738286888671,0.06056352,3259.9,3259.6,3.06777]
[1738286888892,0.06056352,3259.9,3259.7,3.06775]
[1738286889196,0.06056352,3259.9,3259.8,3.08311708]
[1738286889411,0.7623,3260.4,3260.2,3.06729]
[1738286889559,0.7623,3260.9,3260.4,3.0671]
[1738286889754,0.06016918,3260.8,3260.5,3.06699]
[1738286890070,0.06016918,3260.8,3260.4,3.0671]
[1738286891409,0.06016918,3260.8,3260.6,3.06691]
[1738286891559,0.06016918,3260.8,3260.4,0.202]
[1738286891560,0.06016918,3260.8,3260.7,3.06682]
[1738286891964,0.03833258,3261.2,3260.7,3.06682]
[1738286892196,0.06046021,3261.1,3260.7,3.06682]
[1738286892401,0.06046021,3261.1,3260.4,3.26908]
[1738286892697,3.12694021,3261.1,3260.4,3.06708]
[1738286892903,0.7546,3260.9,3259.9,5.03911382]
[1738286893061,3.0673,3260.2,3259.5,3.06792]
[1738286893259,3.06777,3259.7,3259.1,3.0683]
[1738286893467,3.06767,3259.9,3259.1,3.0683]
[1738286893690,0.06037872,3259.6,3259.1,3.0683]
[1738286894004,3.06769,3259.8,3259.1,3.0683]
[1738286894171,0.06039264,3259.7,3258.9,5.6995]
[1738286894376,0.09874202,3259.7,3259.2,3.3543519]
[1738286894685,3.48322522,3259.7,3259.2,0.2861319]
[1738286894891,0.7574,3259.6,3259.2,0.2861319]
[1738286895264,0.06040823,3259.5,3259.2,0.2861319]
[1738286895946,0.06040823,3259.5,3259.4,3.06804]
[1738286896509,0.06040823,3259.5,3259.3,0.2861319]
[1738286896675,0.06040823,3259.5,3259.4,0.2861319]
[1738286899458,0.06040823,3259.5,3259.4,3.3541719]
[1738286899920,0.06040823,3259.5,3259.4,0.2861319]
[1738286900125,0.8171,3259.9,3259.4,0.2861319]
[1738286900623,0.05997409,3259.8,3259.4,0.2861319]
[1738286900821,0.05997409,3259.8,3259.7,3.06776]
[1738286901193,0.8001,3260.7,3260.2,3.06729]
[1738286901509,0.05996573,3260.6,3260.3,3.06718]
[1738286901678,0.05996573,3260.6,3260.2,3.06723]
[1738286901881,3.06667,3260.9,3260.2,3.06723]
[1738286902122,0.06018597,3260.5,3260.2,3.06723]
[1738286902422,0.06017206,3260.4,3260.2,3.06723]
[1738286902585,0.06017206,3260.4,3260.3,3.0672]
[1738286902783,6.91250707,3261.0,3260.3,3.3533319]
[1738286903020,6.87417,3261.0,3260.3,3.3533319]
[1738286903195,0.06023726,3260.9,3260.3,3.3533319]
[1738286904082,0.06023726,3260.9,3260.4,0.2861319]
[1738286905187,0.06023726,3260.9,3260.5,0.2861319]
[1738286906499,0.06023726,3260.9,3260.4,3.06708]
[1738286907722,3.12694726,3260.9,3260.2,3.06722]
[1738286907894,3.06676,3260.8,3260.2,3.06722]
[1738286908221,0.09863111,3260.7,3260.2,3.06722]
[1738286908783,0.06029407,3260.7,3260.2,3.06722]
[1738286909279,0.06029407,3260.7,3260.3,0.28636933]
[1738286909479,0.06029407,3260.7,3260.3,3.35355933]
[1738286909713,9.94082,3261.0,3260.3,3.35355933]
[1738286909891,0.06024545,3260.6,3260.3,3.35355933]
[1738286910092,0.994082,3260.9,3260.3,3.35355933]
[1738286910326,0.06049494,3260.5,3260.3,3.35355933]
[1738286910500,4.060712,3260.9,3260.3,3.35355933]
[1738286910698,0.06048103,3260.4,3260.3,3.35355933]
[1738286911011,4.060712,3260.9,3260.4,0.28636933]
[1738286911329,1.0934902,3260.8,3260.4,0.28636933]
[1738286912098,3.06663,3260.9,3260.4,0.28636933]
[1738286912294,3.06663,3260.9,3260.5,0.28636933]
[1738286912498,3.10509703,3260.8,3260.5,0.28636933]
[1738286913234,3.06689,3260.7,3260.5,0.28636933]
[1738286913444,4.54205961,3260.6,3260.5,0.28636933]
[1738286913600,6.92486091,3260.6,3260.5,0.28636933]
[1738286913924,3.06739,3260.1,3260.0,0.28636933]
[1738286914084,3.83849,3260.1,3260.0,0.28636933]
[1738286915433,0.7711,3260.1,3259.6,3.35412933]
[1738286915634,0.7622,3261.0,3259.8,0.5637]
[1738286915788,3.06664,3260.9,3260.3,3.06719]
[1738286917436,3.06664,3260.9,3260.4,0.28636933]
[1738286917990,1.35104315,3261.0,3260.5,3.06699]
[1738286918190,0.7622,3261.0,3260.5,3.26899]
[1738286918858,0.7622,3261.0,3260.5,3.55535933]
[1738286919764,0.7622,3261.0,3260.5,0.48836933]
[1738286919960,0.7622,3261.0,3260.5,3.55529933]
[1738286920279,0.7622,3261.0,3260.5,0.48836933]
[1738286920480,3.86708444,3261.0,3260.5,0.28636933]
[1738286920642,4.59929321,3261.0,3260.6,0.28636933]
[1738286921480,1.49440877,3261.0,3260.6,0.28636933]
[1738286922291,1.49440877,3261.0,3260.7,0.28636933]
[1738286923887,1.49440877,3261.0,3260.6,0.28636933]
[1738286924592,3.06663,3260.9,3260.6,0.28636933]
[1738286924747,3.06682,3260.7,3260.6,0.28636933]
[1738286924949,3.10515767,3260.7,3260.6,0.28636933]
[1738286925148,3.12541705,3260.7,3260.0,0.202]
[1738286925494,3.12541705,3260.7,3260.1,3.06738]
[1738286926058,3.12541705,3260.7,3260.1,3.26938]
[1738286926263,0.05859705,3260.7,3260.5,3.06699]
[1738286926504,0.05859705,3260.7,3260.6,3.63062]
[1738286926709,3.06629,3261.3,3260.7,3.06681]
[1738286926872,3.451159,3261.3,3260.7,3.06681]
[1738286927075,0.05855255,3261.2,3260.7,3.06681]
[1738286927861,3.12490255,3261.2,3260.6,0.5637]
[1738286928214,3.1047827,3261.1,3260.8,0.28653536]
[1738286928363,0.05852475,3261.0,3260.8,0.28653536]
[1738286929478,3.85013,3260.9,3260.8,0.28653536]
[1738286929765,3.06686,3260.7,3260.2,0.201]
[1738286929972,0.05863198,3260.6,3260.2,0.201]
[1738286930166,0.05863198,3260.6,3260.0,3.63117]
[1738286930397,0.05863198,3260.6,3260.1,0.201]
[1738286930605,0.7725,3260.3,3260.0,0.201]
[1738286930911,0.05857635,3260.2,3260.0,0.201]
[1738286931210,0.81084235,3260.3,3260.0,0.201]
[1738286931386,0.05857635,3260.2,3260.0,0.201]
[1738286931582,0.81084235,3260.3,3260.1,0.2869727]
[1738286931781,0.05857635,3260.2,3260.1,0.2869727]
[1738286932011,0.81084235,3260.3,3260.1,0.2869727]
[1738286932219,3.12586635,3260.2,3260.1,0.2869727]
[1738286932572,3.06747,3260.1,3259.4,3.63172]
[1738286932768,0.09670095,3260.0,3259.5,35.0]
[1738286933295,0.05835448,3260.0,3259.5,3.06793]
[1738286933667,0.05826564,3259.9,3259.5,3.06793]
[1738286934120,3.06747,3260.1,3259.6,0.28695834]
[1738286934820,3.83976,3260.3,3259.6,3.35480834]
[1738286935026,0.05825199,3260.2,3259.6,3.35480834]
[1738286935181,0.05825199,3260.2,3259.7,0.28695834]
[1738286935815,3.12554199,3260.2,3259.7,0.28695834]
[1738286936685,0.05825199,3260.2,3259.7,0.28695834]
[1738286936882,3.06739,3260.1,3259.8,0.28695834]
[1738286937280,0.09657705,3260.0,3259.8,0.28695834]
[1738286937697,3.06739,3260.1,3259.8,0.28695834]
[1738286937918,0.05821677,3259.9,3259.8,0.28695834]
[1738286938119,3.06739,3260.1,3259.8,0.28695834]
[1738286938307,4.53042,3260.3,3259.8,0.28695834]
[1738286938308,0.05821677,3259.9,3259.8,0.28695834]
[1738286938506,0.03834402,3260.2,3259.8,35.28695834]
[1738286938813,3.10566402,3260.2,3259.8,35.0]
[1738286939021,0.05826088,3260.1,3259.8,35.0]
[1738286939196,3.10566402,3260.2,3259.8,35.0]
[1738286939394,0.05826088,3260.1,3259.8,35.0]
[1738286939595,3.10566402,3260.2,3259.8,35.0]
[1738286939933,0.05826088,3260.1,3259.8,35.0]
[1738286940320,3.06732,3260.2,3259.8,35.0]
[1738286940629,3.83973,3260.3,3259.6,3.06783]
[1738286940801,0.09661884,3260.2,3259.6,3.06783]
[1738286941166,0.49025372,3260.2,3259.4,0.5637]
[1738286941433,3.06749,3260.0,3259.4,0.201]
[1738286941595,3.16418958,3259.9,3259.5,0.28668309]
[1738286941794,0.09657958,3259.9,3259.5,0.28668309]
[1738286943302,0.09657958,3259.9,3259.6,0.28668309]
[1738286943508,0.05823306,3259.9,3259.6,0.28668309]
[1738286944228,3.46093488,3260.2,3259.6,0.28668309]
[1738286944595,3.46093488,3260.2,3259.7,0.28668309]
[1738286944795,0.05812728,3260.1,3259.7,0.28668309]
[1738286946031,3.12551728,3260.1,3259.7,0.28668309]
[1738286946232,0.05812728,3260.1,3259.7,0.28668309]
[1738286946441,0.05812728,3260.1,3259.8,0.28668309]
[1738286948141,0.05812728,3260.1,3259.9,0.28668309]
[1738286948727,0.05812728,3260.1,3260.0,3.06748]
[1738286949124,3.89826,3260.9,3260.2,3.06725]
[1738286949576,0.05604224,3260.8,3260.2,3.06725]
[1738286950382,0.05604224,3260.8,3260.3,0.57913156]
[1738286950580,0.05604224,3260.8,3260.5,3.06699]
[1738286950749,3.06645,3261.1,3260.5,3.06699]
[1738286951072,3.06645,3261.1,3260.6,0.28668309]
[1738286951229,0.05617124,3261.0,3260.6,0.28668309]
[1738286952325,0.05617124,3261.0,3260.6,3.36901759]
[1738286952531,0.05617124,3261.0,3260.9,3.63033]
[1738286952762,0.766,3261.6,3260.9,3.63033]
[1738286952763,0.766,3261.6,3261.0,3.06648]
[1738286952961,0.383191,3261.5,3261.0,3.06648]
[1738286953174,0.43756528,3261.5,3261.1,3.06644]
[1738286953378,0.47589358,3261.5,3260.9,3.63031]
[1738286953573,0.05437428,3261.5,3261.0,3.06654]
[1738286954181,0.05437428,3261.5,3261.1,3.0664]
[1738286954750,3.0,3261.7,3261.1,3.0664]
[1738286954948,0.05451922,3261.4,3261.1,3.0664]
[1738286955149,3.0,3261.7,3261.1,3.0664]
[1738286955347,0.05450531,3261.3,3261.1,3.0664]
[1738286955576,3.992825,3261.7,3261.1,3.0664]
[1738286955775,0.7967,3261.9,3261.1,3.08179017]
[1738286955949,3.06586,3261.8,3261.2,3.06632]
[1738286956148,3.06592,3261.7,3261.2,0.28630283]
[1738286957800,3.7967,3261.9,3261.2,0.28630283]
[1738286957999,6.86246,3261.9,3261.2,0.28630283]
[1738286958206,3.06579,3261.8,3261.1,3.26739]
[1738286959907,3.06579,3261.8,3261.2,3.08172759]
[1738286960303,3.06579,3261.8,3261.2,3.06632]
[1738286960506,0.03832522,3261.7,3261.0,6.13292]
[1738286960796,0.03832522,3261.7,3261.1,0.201]
[1738286960965,0.03832522,3261.7,3261.1,3.26744]
[1738286962009,3.06579,3261.8,3261.1,3.26744]
[1738286962496,0.03832523,3261.8,3261.1,0.201]
[1738286962666,0.7967,3261.9,3261.2,0.01540572]
[1738286962866,3.8624,3261.9,3261.3,3.06622]
[1738286963853,0.8319,3262.4,3261.9,3.06568]
[1738286964024,0.8319,3262.4,3261.8,0.01538997]
[1738286964210,1.25992706,3262.4,3261.8,0.201]
[1738286964538,4.286839,3262.4,3261.8,38.26677]
[1738286964841,3.89713,3262.4,3261.8,38.26677]
[1738286965443,0.8319,3262.4,3261.8,38.26677]
[1738286966093,0.87021806,3262.4,3261.8,38.26677]
[1738286966299,3.93550806,3262.4,3261.8,38.26677]
[1738286967338,0.03831806,3262.4,3261.9,0.5637]
[1738286967644,3.06495,3262.7,3262.1,3.0655]
[1738286968014,3.0,3262.6,3262.1,3.0655]
[1738286968511,3.0,3262.6,3261.9,0.5637]
[1738286968713,3.0,3262.6,3262.0,3.06559]
[1738286969115,6.06506,3262.6,3262.0,3.06559]
[1738286969834,0.05344445,3262.5,3262.0,3.06559]
[1738286970428,6.06506,3262.6,3262.0,3.06559]
[1738286970946,3.06516,3262.5,3261.9,0.5637]
[1738286971147,3.06522,3262.4,3261.8,38.26677]
[1738286971369,3.11868643,3262.4,3261.8,3.26677]
[1738286971775,3.11868643,3262.4,3261.8,38.26677]
[1738286972162,0.05346643,3262.4,3261.8,35.201]
[1738286972358,3.06532,3262.3,3261.8,35.201]
[1738286972565,3.06532,3262.3,3261.5,8.93]
[1738286972566,0.7979,3261.7,3261.5,8.93]
[1738286972769,3.06597,3261.6,3260.9,3.0666]
[1738286972938,3.11932527,3261.6,3261.0,0.201]
[1738286973368,3.11932527,3261.6,3261.0,3.26754]
[1738286975479,3.06589,3261.7,3261.3,0.201]
[1738286976668,3.0657,3261.9,3261.3,3.26725]
[1738286976863,0.05327986,3261.8,3261.3,3.26725]
[1738286978045,3.88849,3262.0,3261.3,3.26725]
[1738286978241,0.05329376,3261.9,3261.3,3.26725]
[1738286978655,0.05329376,3261.9,3261.4,35.0]
[1738286979707,0.05329376,3261.9,3261.5,3.06605]
[1738286980008,0.05329376,3261.9,3261.6,3.06595]
[1738286980506,0.05329376,3261.9,3261.7,38.06588]
[1738286980710,0.05329376,3261.9,3261.7,3.06588]
[1738286980877,0.8228,3262.0,3261.7,3.06588]
[1738286981084,0.05334269,3261.9,3261.6,35.0]
[1738286981408,0.8228,3262.0,3261.6,35.0]
[1738286981763,0.05334269,3261.9,3261.6,38.06597]
[1738286982162,0.8228,3262.0,3261.6,38.06597]
[1738286982606,0.05334269,3261.9,3261.6,3.06597]
[1738286983617,3.8627,3262.6,3261.9,3.06562]
[1738286983779,3.8627,3262.6,3262.0,3.06559]
[1738286983991,0.05341421,3262.5,3262.0,3.06559]
[1738286987004,0.05341421,3262.5,3261.9,0.01538884]
[1738286987209,0.05341421,3262.5,3262.1,3.06542]
[1738286987402,0.05341421,3262.5,3262.1,38.08079998]
[1738286987609,3.8043,3262.9,3262.3,3.0653]
[1738286987831,3.8043,3262.9,3262.3,3.08067993]
[1738286988030,0.05357972,3262.8,3262.3,3.08067993]
[1738286988240,0.8043,3262.9,3262.6,3.06503]
[1738286988439,3.81587,3263.1,3262.5,3.06509]
[1738286988623,0.05361008,3262.8,3262.5,3.06509]
[1738286988821,3.81587,3263.1,3262.5,3.06509]
[1738286989234,0.05359017,3263.0,3262.5,3.26609]
[1738286989594,0.05359017,3263.0,3262.6,35.0]
[1738286989793,0.05359017,3263.0,3262.8,3.06477]
[1738286990032,3.82061,3263.4,3262.8,3.06477]
[1738286990395,3.06463,3263.1,3262.8,0.201]
[1738286990811,0.05366519,3263.0,3262.8,0.201]
[1738286991040,0.05366519,3263.0,3262.8,3.26583]
[1738286991397,0.7563,3263.4,3262.8,3.26583]
[1738286991603,3.82061,3263.4,3262.8,3.26583]
[1738286991840,3.82061,3263.4,3262.8,0.201]
[1738286992147,3.11829895,3263.3,3262.8,0.201]
[1738286992439,0.05390895,3263.3,3262.8,0.201]
[1738286992595,3.11828895,3263.3,3262.8,0.201]
[1738286992996,0.05390895,3263.3,3262.8,3.26576]
[1738286993201,0.05390895,3263.3,3262.9,3.06467]
[1738286994245,0.05390895,3263.3,3262.9,3.08003268]
[1738286994834,0.05390895,3263.3,3262.9,3.06467]
[1738286995036,0.005,3263.4,3263.2,3.06447]
[1738286995356,0.005,3263.4,3263.3,3.07973353]
[1738286996315,0.05944637,3263.4,3263.3,3.06438]
[1738286996539,0.005,3263.4,3263.3,3.06438]
[1738286997142,0.0595321,3263.4,3263.3,3.06438]
[1738286997351,0.005,3263.4,3263.3,3.06438]
[1738286997670,0.005,3263.4,3263.3,4.19308]
[1738286997851,0.005,3263.4,3263.3,7.19308]
[1738286999049,0.005,3263.4,3263.3,18.12308]
[1738287001025,0.005,3263.4,3263.3,9.19308]
[1738287001221,0.005,3263.4,3263.3,9.39408]
[1738287001466,0.66666667,3264.7,3264.6,3.06316]
[1738287001626,0.66666667,3264.7,3264.6,7.39286]
[1738287002043,0.66666667,3264.7,3264.6,9.39286]
[1738287002618,0.66666667,3264.7,3264.6,9.19186]
[1738287002825,0.66666667,3264.7,3264.6,7.39286]
[1738287004154,0.66666667,3264.7,3264.6,7.61949413]
[1738287004955,0.66666667,3264.7,3264.6,9.61949413]
[1738287006261,2.0,3265.0,3264.7,0.1]
[1738287006553,2.0,3265.0,3264.9,7.19158]
[1738287007868,2.0,3265.0,3264.9,7.41821413]
[1738287009161,0.72395619,3265.0,3264.9,7.61921413]
[1738287010063,0.72395619,3265.0,3264.9,7.41821413]
[1738287010858,6.19e-06,3265.0,3264.9,7.61921413]
[1738287011059,0.7582,3266.7,3266.2,3.06165]
[1738287011363,0.7582,3266.7,3266.2,3.26265]
[1738287011859,0.7582,3266.7,3266.3,0.0075]
[1738287012065,0.7582,3266.7,3266.4,3.06146]
[1738287012260,0.7582,3266.7,3266.6,3.06878]
[1738287012567,3.06045,3267.5,3266.9,3.061]
[1738287012568,0.7678,3267.4,3266.9,3.061]
[1738287013155,0.7678,3267.4,3267.0,0.0075]
[1738287013642,0.7678,3267.4,3266.7,3.06117]
[1738287013643,3.09892578,3267.3,3266.7,3.06117]
[1738287013841,0.76,3267.2,3266.6,0.0075]
[1738287014168,3.82072,3267.2,3266.6,0.0075]
[1738287014585,3.06073,3267.2,3266.6,3.06127]
[1738287014751,1.097773,3267.1,3266.7,0.201]
[1738287015259,0.39964338,3267.4,3266.8,3.06104]
[1738287015461,0.7917,3267.5,3267.1,3.0608]
[1738287015660,0.7917,3267.5,3267.2,3.06067]
[1738287015860,0.7917,3267.5,3267.1,3.0608]
[1738287016229,0.7917,3267.5,3267.1,0.201]
[1738287016937,0.7917,3267.5,3267.4,3.06053]
[1738287017236,0.1682838,3267.6,3267.5,3.07544]